[Event "15th Arad Open 2022"]
[Site "Arad"]
[Date "2022.08.11"]
[Round "5.11"]
[White "Chima, Radu-Niculin"]
[Black "Herczeg, Marcell"]
[Result "1/2-1/2"]
[ECO "B48"]
[WhiteElo "2005"]
[BlackElo "2044"]
[Annotator "TA"]
[PlyCount "82"]
[EventDate "2022.08.08"]
[EventType "swiss"]
[EventCountry "ROU"]
[SourceTitle "playchess.com"]
[Source "ChessBase"]
[SourceQuality "1"]
[TimeControl "5400+30"]

{[%evp 15,82,16,30,0,-9,-16,-14,-14,-5,-20,8,2,7,-8,20,27,22,24,37,38,23,0,0,0,37,-20,-12,-20,-22,-29,-22,-35,-8,-16,0,-21,-10,-9,-10,-7,0,-12,-10,-17,-15,-15,0,0,3,0,7,8,6,7,18,0,2,0,0,0,0,0,0,0,0,0,0,-80,0]} 1. e4 {[%emt 0:00:03]} c5 {[%emt 0:01:20]} 2. Nf3 {[%emt 0:00:09]} e6 {[%emt 0:01:10]} 3. d4 {[%emt 0:00:14]} cxd4 {[%emt 0:00:21]} 4. Nxd4 {[%emt 0:00:37]} Nc6 {[%emt 0:00:59]} 5. Nc3 {[%emt 0:03:21]} Qc7 {[%emt 0:00:49]} 6. Be3 {[%emt 0:03:24]} a6 {[%emt 0:01:55]} 7. Bd3 {[%emt 0:06:14] 7.g4 gains popularity.} Nf6 {[%emt 0:01:45]} 8. O-O {[%emt 0:01:36]} b5 {[%emt 0:04:53]} 9. h3 {[%emt 0:04:18] B48: Sicilian: Taimanov: 5 Nc3 Qc7 6 Be3 a6 without Be2.} Bb7 {[%emt 0:03:15]} 10. Nxc6 {[%emt 0:03:03] [#]} Qxc6 $146 {[%emt 0:09:53]} ({Predecessor:} 10... Bxc6 11. f3 b4 12. Ne2 d5 13. exd5 Nxd5 14. Bf2 Nf4 15. Nxf4 Qxf4 16. Qc1 Qxc1 17. Raxc1 {0-1 (75) Montoro,A (2224)-Wyss,T (2271) Switzerland 2004}) 11. f3 {[%emt 0:02:13] The position is equal.} Bc5 {[%emt 0:09:16]} 12. Qe1 {[%emt 0:02:07]} Qb6 {[%emt 0:04:48]} 13. Bxc5 {[%emt 0:01:09]} Qxc5+ {[%emt 0:00:09]} 14. Kh1 {[%emt 0:00:21]} d6 {[%emt 0:19:42]} 15. a4 {[%emt 0:05:30][%cal Ra4b5]} b4 {[%emt 0:06:11]} 16. Na2 {[%emt 0:03:42]} a5 {[%emt 0:01:56]} 17. c3 {[%emt 0:02:40]} bxc3 {[%emt 0:03:35]} 18. Nxc3 {[%emt 0:00:55]} O-O {[%emt 0:00:36]} 19. Rc1 {[%emt 0:00:53]} Qb4 {[%emt 0:03:47]} 20. Qe2 {[%emt 0:10:00]} (20. Nb5 $14) 20... d5 {[%emt 0:07:29]} 21. exd5 {[%emt 0:01:38]} Nxd5 {[%emt 0:00:30] aiming for ...Nf4.} 22. Nxd5 {[%emt 0:02:07]} Bxd5 {[%emt 0:00:08][%cal Bb7d5,Bd5b3,Bb3c4][%mdl 32]} 23. Bb5 {[%emt 0:00:26]} Rfc8 {[%emt 0:04:15]} 24. Rfe1 {[%emt 0:09:53]} Qf4 {[%emt 0:02:33]} 25. Rcd1 {[%emt 0:05:10]} Bb3 {[%emt 0:05:18]} 26. Qd2 {[%emt 0:01:22]} Qxd2 {[%emt 0:04:51]} 27. Rxd2 {[%emt 0:00:07]} Bc4 {[%emt 0:00:39]} 28. Re5 {[%emt 0:06:30]} Bd5 {[%emt 0:00:35]} 29. Rd4 {[%emt 0:00:59]} Rc1+ {[%emt 0:00:18]} 30. Kh2 {[%emt 0:02:45]} Rb1 {[%emt 0:00:10]} 31. Bc4 {[%emt 0:03:13]} Bxc4 {[%emt 0:00:16]} 32. Rxc4 {[%emt 0:00:05][%cal Oe5a5] And now Rxa5! would win.} Rxb2 {[%emt 0:00:16] [#]} 33. Rxa5 $1 $11 {[%emt 0:01:05][%mdl 4096] Endgame KRR-KRR} Rbb8 {[%emt 0:00:34] [#]} 34. Rb4 $1 {[%emt 0:04:24]} g6 {[%emt 0:00:15]} (34... Rc8 35. Rc4) 35. Rxb8+ {[%emt 0:00:24]} Rxb8 {[%emt 0:00:05] KR-KR} 36. Kg3 {[%emt 0:00:28]} Rb2 {[%emt 0:00:31]} 37. Ra8+ {[%emt 0:00:49]} Kg7 {[%emt 0:00:06]} 38. a5 {[%emt 0:00:24]} Kf6 {[%emt 0:00:21]} 39. a6 {[%emt 0:02:09]} Ra2 {[%emt 0:00:24]} 40. a7 {[%emt 0:14:03]} h5 {[%emt 0:04:36]} 41. Kh2 {[%emt 0:00:30]} (41. Kf4 $11) 41... Ra3 {[%emt 0:00:30] Weighted Error Value: White=0.13 (very precise) /Black=0.09 (flawless)} (41... Kg5 $17) 1/2-1/2

[Event "15th Arad Open 2022"]
[Site "Arad"]
[Date "2022.08.11"]
[Round "5.12"]
[White "Pauwels, Xander"]
[Black "Dinca, Ovidiu"]
[Result "1-0"]
[ECO "D11"]
[WhiteElo "2040"]
[BlackElo "1831"]
[Annotator "TA"]
[PlyCount "93"]
[EventDate "2022.08.08"]
[EventType "swiss"]
[EventCountry "ROU"]
[SourceTitle "playchess.com"]
[Source "ChessBase"]
[SourceQuality "1"]
[TimeControl "5400+30"]

{[%evp 9,93,4,67,68,93,89,122,72,83,64,72,34,68,60,67,79,62,91,84,74,106,73,91,85,94,35,37,0,50,20,49,47,51,51,43,46,44,33,43,21,100,51,140,141,222,168,191,172,225,237,363,355,355,362,386,381,385,360,477,460,583,440,648,386,364,246,197,200,192,138,219,219,451,451,440,451,437,423,418,412,385,370,1163,1097,5598,5591]} 1. d4 {[%emt 0:00:44]} d5 {[%emt 0:00:06]} 2. c4 {[%emt 0:00:11]} c6 {[%emt 0:00:05]} 3. Nf3 {[%emt 0:00:09]} Nf6 {[%emt 0:00:06]} 4. g3 {[%emt 0:01:32]} Bf5 {[%emt 0:02:42]} 5. Bg2 {[%emt 0:01:57]} Bxb1 {[%emt 0:13:19]} (5... e6 $11) 6. Rxb1 $14 {[%emt 0:00:06] D11: Slav Defence: 3 Nf3 sidelines and 3...Nf6 4 e3 Bg4.} Qa5+ {[%emt 0:00:03]} 7. Bd2 {[%emt 0:08:21]} Qxa2 {[%emt 0:00:16]} 8. c5 {[%emt 0:27:09]} ({White should try} 8. Ra1 Qxb2 9. O-O) 8... b5 {[%emt 0:09:09] [#]} 9. O-O $146 {[%emt 0:11:05][%mdl 1024] Threatens to win with Ra1. White has strong compensation.} ({Predecessor:} 9. Ra1 Qxb2 10. Rb1 Qa2 11. Ra1 Qb2 12. Rb1 Qa2 13. Ra1 Qb2 14. Rb1 {½-½ (14) Machan,J (2078)-Melzer,P (2135) Czech Republic 2012}) 9... Qa6 {[%emt 0:00:31]} 10. Qc2 {[%emt 0:04:20]} e6 {[%emt 0:02:50]} 11. b4 {[%emt 0:02:27]} Qb7 {[%emt 0:00:46]} 12. Ne5 {[%emt 0:01:38]} Nbd7 {[%emt 0:00:51]} 13. Nd3 {[%emt 0:07:59] White is much more active. The black rooks are badly placed.} Be7 {[%emt 0:00:38]} 14. Ra1 {[%emt 0:00:23]} O-O {[%emt 0:00:26]} 15. Ra3 {[%emt 0:01:03]} a6 {[%emt 0:01:33]} 16. Rfa1 {[%emt 0:00:54]} Ra7 {[%emt 0:00:14]} 17. h3 {[%emt 0:04:02]} (17. f3 $16) 17... Rfa8 {[%emt 0:04:03]} 18. f4 {[%emt 0:01:24]} Qc7 {[%emt 0:04:33]} (18... Ne4 $11) 19. Nf2 {[%emt 0:02:24]} g6 {[%emt 0:02:10]} 20. Qd3 {[%emt 0:01:50]} Bf8 {[%emt 0:01:10]} 21. g4 {[%emt 0:00:22]} Bg7 {[%emt 0:00:52]} 22. e3 {[%emt 0:01:17][%cal Be2e3,Be3e4,Be4e5][%mdl 32]} h6 {[%emt 0:05:57]} 23. Bf3 {[%emt 0:01:16]} Kf8 {[%emt 0:01:24]} 24. Kg2 {[%emt 0:00:17]} Ke7 {[%emt 0:02:00]} (24... Ng8 $11 {keeps the balance.}) 25. Re1 {[%emt 0:03:03] White stays focused until the end.} (25. e4 $16) 25... Kd8 {[%emt 0:03:37]} (25... Kf8 $14) 26. e4 $16 {[%emt 0:04:47]} Kc8 {[%emt 0:00:30]} (26... a5 $16) 27. e5 {[%emt 0:03:38]} Nh7 {[%emt 0:01:30]} 28. f5 {[%emt 0:02:55]} gxf5 {[%emt 0:06:31]} (28... Ng5 $142 29. f6 (29. fxg6 Nxf3 30. Kxf3 Nf8 $16) 29... Nxf3 30. Qxf3 (30. fxg7 Nxe1+ 31. Bxe1 Qd8 $11) 30... Bf8) 29. gxf5 $18 {[%emt 0:00:03]} Ng5 {[%emt 0:00:52]} (29... Nhf8 {might work better.} 30. Bg4 Kb7) 30. Bg4 {[%emt 0:01:18][%cal Bf3g4,Bg4f5,Bf5e4][%mdl 32]} Kb7 {[%emt 0:00:59] [#]} 31. h4 $1 {[%emt 0:02:25]} Ne4 {[%emt 0:10:52]} 32. Nxe4 {[%emt 0:00:08]} dxe4 {[%emt 0:00:04]} 33. Qxe4 {[%emt 0:00:04]} exf5 {[%emt 0:00:22]} 34. Bxf5 {[%emt 0:00:32]} Nf8 {[%emt 0:00:36]} 35. d5 {[%emt 0:01:54]} Re8 {[%emt 0:01:23]} (35... cxd5 $142 36. Qxd5+ Qc6) 36. dxc6+ {[%emt 0:02:09]} Qxc6 {[%emt 0:01:00]} 37. Qxc6+ {[%emt 0:00:05]} Kxc6 {[%emt 0:00:07]} 38. Be4+ {[%emt 0:01:16] This bishop pair is nice.} Kc7 {[%emt 0:00:06]} 39. Rf3 {[%emt 0:01:07]} (39. Rea1 $18) 39... Kd8 {[%emt 0:05:46]} (39... Kb8 $16 40. Rd3 Ne6) 40. c6 {[%emt 0:00:00]} Ng6 $2 {[%emt 0:00:00]} (40... Bxe5 41. Bxh6 Ne6 42. Rd3+ Kc7 43. Rd7+ Kb8) 41. Bxg6 {[%emt 0:00:00]} fxg6 {[%emt 0:00:00]} 42. Be3 {[%emt 0:00:00]} Rae7 {[%emt 0:00:00]} 43. Bb6+ {[%emt 0:00:00]} Kc8 {[%emt 0:00:00]} 44. Ra3 {[%emt 0:00:00]} Bxe5 {[%emt 0:00:00]} 45. Rxa6 {[%emt 0:00:00][%cal Oe1e5] [#] Rxe5! would kill now.} Kb8 $2 {[%emt 0:01:27]} (45... Bb8 46. Rxe7 Rxe7) 46. Bc5 {[%emt 0:00:00] Intending Rxe5 and mate.} Rf7 {[%emt 0:12:20]} 47. Bd6+ {[%emt 0:05:46] Weighted Error Value: White=0.28 (precise) /Black=0.44} 1-0

[Event "15th Arad Open 2022"]
[Site "Arad"]
[Date "2022.08.11"]
[Round "5.13"]
[White "Capragiu, Matei-Stefan"]
[Black "Moerman, Thomas"]
[Result "1/2-1/2"]
[ECO "E48"]
[WhiteElo "1925"]
[BlackElo "2026"]
[Annotator "TA"]
[PlyCount "61"]
[EventDate "2022.08.08"]
[EventType "swiss"]
[EventCountry "ROU"]
[SourceTitle "playchess.com"]
[Source "ChessBase"]
[SourceQuality "1"]
[TimeControl "5400+30"]

{[%evp 18,61,-12,-29,0,-20,-20,-16,-8,-42,0,-8,-6,-43,-35,-31,-20,-14,-7,-1,-16,-102,108,128,190,116,212,68,89,-61,172,159,286,270,379,78,599,323,686,67,103,90,95,59,66,74]} 1. d4 {[%emt 0:01:41]} Nf6 {[%emt 0:00:10]} 2. c4 {[%emt 0:00:05]} e6 {[%emt 0:00:07]} 3. Nc3 {[%emt 0:00:14]} Bb4 {[%emt 0:00:08]} 4. e3 {[%emt 0:00:56]} O-O {[%emt 0:00:22]} 5. Bd3 {[%emt 0:00:06]} d5 {[%emt 0:01:22]} 6. Nge2 {[%emt 0:00:51]} dxc4 {[%emt 0:01:04]} 7. Bxc4 {[%emt 0:00:12]} c5 {[%emt 0:00:28]} 8. O-O {[%emt 0:00:28]} cxd4 {[%emt 0:01:06]} 9. exd4 {[%emt 0:01:19]} Nc6 {[%emt 0:01:18]} 10. Bg5 {[%emt 0:10:23]} h6 {[%emt 0:25:32] E48: Nimzo-Indian: Rubinstein: 5 Bd3 d5 including 6 Ne2, but excluding 6 a3.} 11. Bh4 {[%emt 0:11:38]} Be7 {[%emt 0:15:39]} 12. a3 {[%emt 0:06:08]} Qb6 {[%emt 0:04:31] [#] The position is equal.} 13. Bg3 $146 {[%emt 0:06:10]} ({Predecessor:} 13. b4 Rd8 14. Na4 Qc7 15. Rc1 Nxd4 16. Bg3 Qd7 17. Nxd4 Qxd4 18. Qf3 Qe4 19. Be2 {½-½ (40) Lombart,P (2110)-Kolanek,S (2070) LSS email 2020}) 13... Nh5 {[%emt 0:04:49]} (13... Qxb2 $2 14. Na4 Qxa1 15. Qxa1 $18) 14. Na4 {[%emt 0:05:29]} Qd8 {[%emt 0:02:09]} 15. Qd3 {[%emt 0:01:59]} Nxg3 {[%emt 0:05:57]} 16. hxg3 {[%emt 0:00:26]} Qa5 {[%emt 0:01:31]} 17. Nac3 {[%emt 0:12:15]} Rd8 {[%emt 0:01:05] Strongly threatening ...Ne5.} 18. Ba2 {[%emt 0:03:59]} Bf6 {[%emt 0:01:53]} 19. Rad1 {[%emt 0:14:34]} (19. d5 $1 $11 {keeps the balance.}) 19... b6 $2 {[%emt 0:10:27]} (19... Nxd4 $1 $17 {keeps the pressure on.} 20. Nxd4 Rxd4) 20. Bb1 $1 $16 {[%emt 0:03:31]} Ba6 {[%emt 0:03:10]} (20... Qf5 $16 {was called for.}) 21. Qh7+ $1 $18 {[%emt 0:03:52]} Kf8 {[%emt 0:00:07]} 22. b4 {[%emt 0:04:25]} (22. d5 $1 $18 {[%cal Rd5c6]} Bxc3 23. Nxc3 Bxf1 24. Kxf1 (24. dxc6 Rxd1 25. Nxd1 Qe1 $11)) 22... Qg5 $14 {[%emt 0:01:29][%cal Rc6d4]} 23. Be4 {[%emt 0:03:12]} ({White should try} 23. Rfe1 $1 $16 {[%cal Od4d5] Black must now prevent d5!} Bxe2 24. Nxe2) 23... Bxe2 $2 {[%emt 0:07:45]} (23... Rac8 $15 {keeps the upper hand.} 24. d5 Nd4) 24. Nxe2 $18 {[%emt 0:03:58] Dancing on a razor blade.} Rac8 {[%emt 0:00:05]} (24... Ne7 $16) 25. d5 $1 {[%emt 0:01:14]} exd5 {[%emt 0:04:46] [#]} (25... Ne7 {keeps fighting.}) 26. Bf5 $2 {[%emt 0:00:09]} (26. Rxd5 $1 $18 {[%mdl 512]} Rxd5 27. Qh8+ Ke7 28. Qxc8) 26... Rb8 $2 {[%emt 0:02:17][%mdl 8192]} (26... g6 $16 27. Bxc8 Rxc8) 27. Nf4 {[%emt 0:00:44]} g6 $2 {[%emt 0:02:08] [#]} (27... h5 28. Qh8+ (28. Nxh5 Bb2 $14) (28. Rxd5 Qh6 $14) (28. Nxd5 g6 $14) 28... Ke7 29. Rfe1+ (29. Qxh5 Qxh5 30. Nxh5 Bb2 $11) 29... Be5) 28. Bxg6 $2 {[%emt 0:00:16]} Bg7 $1 $14 {[%emt 0:00:56]} 29. Bb1 {[%emt 0:02:42] White is more active.} Nd4 {[%emt 0:00:38]} 30. Qd3 {[%emt 0:00:27]} Rbc8 {[%emt 0:00:37]} 31. Rfe1 {[%emt 0:00:35] Weighted Error Value: White=0.86/Black=0.79} 1/2-1/2

[Event "15th Arad Open 2022"]
[Site "Arad"]
[Date "2022.08.11"]
[Round "5.14"]
[White "Veneteanu, Mihai"]
[Black "Balaban-Voia, Alexandru"]
[Result "1-0"]
[ECO "B08"]
[WhiteElo "2025"]
[BlackElo "1869"]
[Annotator "TA"]
[PlyCount "101"]
[EventDate "2022.08.08"]
[EventType "swiss"]
[EventCountry "ROU"]
[SourceTitle "playchess.com"]
[Source "ChessBase"]
[SourceQuality "1"]
[TimeControl "5400+30"]

{[%evp 17,101,25,37,15,39,27,64,12,31,22,52,8,25,18,20,-16,28,27,31,25,27,14,23,19,23,32,37,38,44,37,39,-7,0,-13,23,22,31,30,44,13,72,40,35,27,21,19,29,9,50,54,41,-5,0,0,28,32,150,152,260,245,320,321,375,363,646,640,593,504,555,553,541,522,494,445,654,654,1040,1040,965,926,824,783,29965,29966,6087,5100]} 1. e4 {[%emt 0:00:02]} g6 {[%emt 0:00:04]} 2. d4 {[%emt 0:00:04]} Bg7 {[%emt 0:00:03]} 3. Nf3 {[%emt 0:07:30]} d6 {[%emt 0:00:06]} 4. Be2 {[%emt 0:00:03]} Nf6 {[%emt 0:00:14]} 5. Nc3 {[%emt 0:00:04]} c6 {[%emt 0:04:19]} 6. a4 {[%emt 0:00:07]} O-O {[%emt 0:00:35]} 7. O-O {[%emt 0:00:02]} Qc7 {[%emt 0:12:02]} 8. Re1 {[%emt 0:07:53]} e5 {[%emt 0:08:50]} 9. h3 {[%emt 0:01:19]} Nbd7 {[%emt 0:03:14]} 10. Bg5 {[%emt 0:01:47] B08: Pirc Defence: Classical System.} Re8 {[%emt 0:06:42]} 11. Bc4 {[%emt 0:05:19]} Nf8 {[%emt 0:12:34] [#]} 12. Bh4 $146 {[%emt 0:02:07]} ({Better is} 12. d5 $14) ({Predecessor:} 12. Qd2 Be6 13. Bb3 Bxb3 14. cxb3 Ne6 15. Be3 a5 16. Rac1 exd4 17. Nxd4 Nc5 18. f3 {0-1 (45) Eriksson,K (2085)-Ziegler,A (2318) Gothenburg 2017}) 12... Be6 {[%emt 0:13:53]} 13. Bf1 {[%emt 0:00:30]} Nh5 {[%emt 0:02:22]} 14. Qd2 {[%emt 0:06:19]} f6 {[%emt 0:10:24]} (14... h6 $5 {[%cal Rg6g5]}) 15. d5 {[%emt 0:20:20]} Bf7 {[%emt 0:09:47]} 16. Kh2 {[%emt 0:01:50]} g5 {[%emt 0:02:04]} 17. Bg3 {[%emt 0:00:01]} Ng6 {[%emt 0:01:20]} 18. a5 {[%emt 0:02:27]} Ne7 {[%emt 0:04:18]} 19. Bc4 {[%emt 0:03:06][%cal Bf1c4,Bc4b3,Bb3c2][%mdl 32]} h6 {[%emt 0:01:50]} 20. Bb3 {[%emt 0:04:09]} c5 {[%emt 0:00:54]} 21. Nb5 {[%emt 0:01:52]} Qd8 {[%emt 0:00:08]} 22. c4 {[%emt 0:02:21]} Bg6 {[%emt 0:00:30]} 23. Bc2 {[%emt 0:00:27]} Rf8 {[%emt 0:02:50]} 24. b4 {[%emt 0:09:35]} (24. Kg1 $14) 24... a6 $11 {[%emt 0:00:18]} 25. Na3 {[%emt 0:00:04]} b6 {[%emt 0:02:50]} 26. Rab1 {[%emt 0:04:10]} cxb4 {[%emt 0:00:17]} 27. Rxb4 {[%emt 0:01:51]} bxa5 {[%emt 0:00:20]} 28. Rb7 {[%emt 0:00:16][%cal Oc4c5] next c5! is good for White.} Rb8 {[%emt 0:01:06]} (28... Nc8 $11) 29. Rxb8 {[%emt 0:05:35] 0x0.001b83f637badp-1022s more active pieces.} (29. Ra7 {keeps more tension.} Be8 30. Rxa6 Ra8 31. Rxa8 Qxa8 32. c5) 29... Qxb8 {[%emt 0:00:03]} 30. Qxa5 {[%emt 0:00:02]} (30. c5 {with more complications.} Nxg3 31. fxg3 Qb4 32. cxd6 Nc8 33. Qe3) 30... f5 {[%emt 0:00:16]} 31. exf5 {[%emt 0:00:45]} Bxf5 {[%emt 0:00:15]} 32. Qxa6 {[%emt 0:05:24][%cal Oc4c5]} Bxc2 {[%emt 0:00:20]} 33. Nxc2 {[%emt 0:00:01]} Nf5 {[%emt 0:01:19] [#] ...Qb3 is the strong threat.} 34. Ne3 {[%emt 0:06:39]} (34. Qa3 $14 {is superior.}) 34... Nhxg3 {[%emt 0:00:19]} (34... Nfxg3 {feels hotter.} 35. fxg3 e4 36. Nd2 Nxg3 37. c5 dxc5 38. d6 Be5) 35. fxg3 {[%emt 0:00:01]} Nxe3 {[%emt 0:00:59]} 36. Rxe3 {[%emt 0:00:01][%cal Oc4c5]} Qb4 {[%emt 0:00:34] [#] Black is now going downhill.} ({Black should play} 36... e4 $1 $14 37. Ne1 (37. Rxe4 Rxf3 38. gxf3 Qb2+ 39. Kg1 Qc1+ 40. Kh2 Qd2+ 41. Kg1 Bd4+ 42. Rxd4 Qxd4+ 43. Kh2 Qf2+ 44. Kh1 Qxf3+ 45. Kh2 Qf2+ 46. Kh1 Qxg3 $11) 37... Re8) 37. Qa2 $1 $16 {[%emt 0:02:34]} Qc5 {[%emt 0:00:28]} (37... Rb8 $16 38. Nd2 Qb2) 38. Qe2 $18 {[%emt 0:00:34] aiming for Nd2.} Rb8 {[%emt 0:00:17]} 39. Nd2 {[%emt 0:00:43]} Rb2 {[%emt 0:00:26]} 40. Rb3 {[%emt 0:00:00]} Qd4 {[%emt 0:00:00]} (40... Rxb3 41. Nxb3 Qc8) 41. Rxb2 {[%emt 0:00:00]} Qxb2 {[%emt 0:00:00][%mdl 4096] Endgame KQB-KQN} 42. Qd3 {[%emt 0:00:00] Prevents Qc2.} Qd4 {[%emt 0:00:00]} 43. Qxd4 {[%emt 0:00:00]} exd4 {[%emt 0:00:00] KB-KN} 44. Kg1 {[%emt 0:00:00]} Be5 {[%emt 0:00:00]} 45. Kf2 {[%emt 0:00:00] Strongly threatening g4.} Kf7 {[%emt 0:00:00]} (45... h5 $142 46. Kf3 Kg7) 46. g4 {[%emt 0:00:00]} Bf4 {[%emt 0:00:00]} 47. Ke2 {[%emt 0:00:00]} Kf6 {[%emt 0:00:00]} 48. Nf3 {[%emt 0:00:00]} Be5 {[%emt 0:00:00]} 49. Kd3 {[%emt 0:00:00]} Kf7 {[%emt 0:00:00]} 50. c5 {[%emt 0:00:00][%cal Bc4c5,Bc5c6][%mdl 32]} Ke7 {[%emt 0:00:00]} 51. c6 {[%emt 0:00:00] Weighted Error Value: White=0.12 (very precise) /Black=0.57} 1-0

[Event "15th Arad Open 2022"]
[Site "Arad"]
[Date "2022.08.11"]
[Round "5.15"]
[White "Paraschiv, Paul-Alexandru"]
[Black "Tudor, Henry Edward"]
[Result "1-0"]
[ECO "B40"]
[WhiteElo "2181"]
[BlackElo "1984"]
[Annotator "TA"]
[PlyCount "71"]
[EventDate "2022.08.08"]
[EventType "swiss"]
[EventCountry "ROU"]
[SourceTitle "playchess.com"]
[Source "ChessBase"]
[SourceQuality "1"]
[TimeControl "5400+30"]

{[%evp 9,70,14,16,16,14,0,30,39,33,26,22,37,31,13,10,0,0,0,10,7,32,0,8,0,-2,-11,0,-16,-22,-16,-12,-16,-22,-36,0,-11,0,-22,191,204,198,198,198,203,203,201,159,199,214,69,688,691,716,716,839,793,970,950,2267,1585,29998,29999,29999]} 1. e4 {[%emt 0:05:33]} c5 {[%emt 0:00:33]} 2. b3 {[%emt 0:01:24]} e6 {[%emt 0:18:54]} 3. Nf3 {[%emt 0:04:26]} d5 {[%emt 0:02:41]} 4. exd5 {[%emt 0:00:32]} exd5 {[%emt 0:00:14]} 5. Bb5+ {[%emt 0:00:16]} Bd7 {[%emt 0:08:59]} 6. Bxd7+ {[%emt 0:02:50] B40: Sicilian: 2...e6, Unusual lines.} Qxd7 {[%emt 0:00:29]} 7. O-O {[%emt 0:00:16]} Bd6 {[%emt 0:00:01] [#]} 8. d4 $146 {[%emt 0:00:36] White has an edge.} ({Predecessor:} 8. Bb2 f6 9. Nh4 Ne7 10. Qh5+ g6 11. Qe2 O-O 12. Nc3 Nbc6 13. Rae1 Rae8 14. f4 {½-½ (23) Oral,T (2455)-Movsesian,S (2595) Slovakia 1998}) 8... Ne7 {[%emt 0:02:04]} 9. dxc5 {[%emt 0:01:41]} Bxc5 {[%emt 0:00:54]} 10. Bb2 {[%emt 0:00:15]} O-O {[%emt 0:00:58]} 11. Nc3 {[%emt 0:03:06]} Nbc6 {[%emt 0:03:09]} 12. Ne4 {[%emt 0:00:29]} Bb6 {[%emt 0:00:19]} 13. Qd2 {[%emt 0:01:01]} f6 {[%emt 0:02:50]} 14. Rad1 {[%emt 0:05:19]} Rad8 {[%emt 0:02:57][%cal Od5e4]} 15. Ng3 {[%emt 0:00:41]} (15. Ba3 {seems wilder.} Qc7 16. Nc3 Ba5 17. Nb5) 15... Qc8 {[%emt 0:09:39]} 16. a3 {[%emt 0:02:53]} Ng6 {[%emt 0:00:57]} 17. Kh1 {[%emt 0:04:46]} Nge5 {[%emt 0:02:59]} 18. Nh4 {[%emt 0:00:15]} g6 {[%emt 0:02:31]} 19. h3 $1 {[%emt 0:04:11] Prevents Qg4.} d4 {[%emt 0:15:09]} 20. Qe2 {[%emt 0:05:19]} Rfe8 {[%emt 0:01:09][%cal Od4d3]} 21. Qd2 {[%emt 0:12:37]} (21. Ne4 {is interesting.} Kg7 22. Rde1 Qd7 23. f4) 21... d3 {[%emt 0:02:29]} 22. Ne4 {[%emt 0:03:14]} Re6 {[%emt 0:07:35]} 23. cxd3 {[%emt 0:09:07] f4 is the strong threat.} Nxd3 {[%emt 0:00:27]} (23... f5 $11 {and Black is okay.} 24. Ng5 Re7) 24. Nxf6+ $18 {[%emt 0:00:18]} Rxf6 {[%emt 0:06:45]} 25. Bxf6 {[%emt 0:00:14]} Nxf2+ {[%emt 0:00:02]} 26. Rxf2 {[%emt 0:00:16]} Rxd2 {[%emt 0:00:02]} 27. Rfxd2 {[%emt 0:00:01] And now Rd7 would win.} Qe6 {[%emt 0:00:27]} 28. Rd6 {[%emt 0:01:51]} Qxb3 {[%emt 0:00:29] [#]} 29. Rd7 {[%emt 0:01:09]} ({Only move:} 29. Nf3 $1 $18) 29... Bd4 $2 {[%emt 0:03:32][%mdl 8192] [#]} 30. Re1 $1 {[%emt 0:01:08][%cal Re1e8]} Be3 {[%emt 0:03:02] [#]} (30... Kf8 31. Bxd4) 31. Bg5 $1 {[%emt 0:08:34][%mdl 512]} Qe6 {[%emt 0:03:11]} (31... Qxa3 32. Rxe3) 32. Rdd1 {[%emt 0:01:17][%cal Bd7d1,Bd1d8,Bd8f8][%mdl 32]} Qb3 {[%emt 0:00:32]} 33. Bxe3 {[%emt 0:00:33]} Qxa3 {[%emt 0:00:02]} 34. Bh6 {[%emt 0:00:25] White wants to mate with Nf3.} Ne7 {[%emt 0:00:58]} 35. Rd8+ {[%emt 0:00:12]} Kf7 {[%emt 0:00:05]} 36. Rf8# {[%emt 0:21:45] Weighted Error Value: White=0.11 (very precise) /Black=0.83} 1-0

[Event "15th Arad Open 2022"]
[Site "Arad"]
[Date "2022.08.11"]
[Round "5.16"]
[White "Vaduva, Ion-Valentin"]
[Black "Tampea, Radu"]
[Result "0-1"]
[ECO "B22"]
[WhiteElo "1497"]
[BlackElo "2093"]
[Annotator "TA"]
[PlyCount "36"]
[EventDate "2022.08.08"]
[EventType "swiss"]
[EventCountry "ROU"]
[SourceTitle "playchess.com"]
[Source "ChessBase"]
[SourceQuality "1"]
[TimeControl "5400+30"]

{[%evp 10,36,32,29,47,29,32,7,17,17,10,-20,-17,-14,12,-166,-151,-150,-145,-532,-525,-518,-518,-511,-506,-29992,-29993,-29994,-29995]} 1. e4 {[%emt 0:00:30]} c5 {[%emt 0:02:26]} 2. c3 {[%emt 0:00:05]} d5 {[%emt 0:01:30]} 3. exd5 {[%emt 0:00:05]} Qxd5 {[%emt 0:00:07]} 4. d4 {[%emt 0:00:12]} Nc6 {[%emt 0:00:18]} 5. Nf3 {[%emt 0:00:15]} Bf5 {[%emt 0:00:22]} 6. Be3 {[%emt 0:00:22]} Nf6 {[%emt 0:00:21] B22: Sicilian: 2 c3.} 7. Na3 {[%emt 0:00:50] Strongly threatening Bc4.} cxd4 {[%emt 0:00:55] [#]} 8. Nb5 $1 {[%emt 0:00:16] aiming for Nc7+.} O-O-O {[%emt 0:00:10] Prevents Nc7. The position is equal.} 9. Nbxd4 {[%emt 0:00:16]} Ng4 {[%emt 0:00:11]} 10. Nxf5 {[%emt 0:02:51]} Qxf5 {[%emt 0:00:10]} 11. Qe2 {[%emt 0:00:43] [#]} e6 $146 {[%emt 0:19:05]} ({Predecessor:} 11... e5 12. g3 Nxe3 13. Qxe3 Nb4 14. Rc1 Nd3+ 15. Bxd3 Rxd3 16. Qxa7 Qe4+ {0-1 (16) Sousa,H (1938)-Nagy,G (2474) Famalicao 2018}) 12. Nd4 $2 {[%emt 0:02:38]} (12. Nh4 $11 {and White is okay.} Qe4 13. Bg5 Qxe2+ 14. Bxe2) 12... Nxd4 $19 {[%emt 0:00:40]} 13. Bxd4 {[%emt 0:04:54]} Rxd4 {[%emt 0:00:15]} 14. cxd4 {[%emt 0:01:32][%mdl 8192]} (14. f3 $17 {nothing else works.} Rd5 15. fxg4) 14... Bb4+ {[%emt 0:00:06][%mdl 64] [#] Deflection} 15. Kd1 {[%emt 0:00:10]} Nxf2+ {[%emt 0:00:05]} 16. Kc1 {[%emt 0:00:17]} Kb8 {[%emt 0:00:07]} 17. b3 {[%emt 0:01:13]} (17. Qe5+ $19 Qxe5 18. dxe5 Rc8+ 19. Kb1 Nxh1 20. a3) 17... Rc8+ {[%emt 0:00:10]} 18. Kb2 {[%emt 0:01:26]} Bc3+ {[%emt 0:00:06][%mdl 64] Skewer, Deflection, Double Attack. White got outplayed after the opening.  Weighted Error Value: White=1.08/Black=0.04 (flawless)} 0-1